Cogmind - Beta 16 --- EXPLORER MODE // 2025.11.14 @ 12:34:34 Player: K.K.Y. Result: Destroyed by 8B-CN3(R) with Subdweller Beam Cannon Performance ------------- Evolutions (0) 0 Regions Visited (2) 400 Robots Destroyed (22) 110 Value Destroyed (518) 518 Prototype IDs (1) 20 Alien Tech Used (0) 0 Bonus (-4) -4 TOTAL SCORE: 1044 Bonus ------- Follower Combat Kills 30 Friendly Fire -34 Cogmind --------- Core Integrity 0/250 Matter 285/300 Energy 44/100 System Corruption 1% Temperature Cool (9) Movement Core (400) Ox7 Location -10/Subcaves Parts ------- > --- POWER (1) -------- (None) > --- PROPULSION (3) --- (None) > --- UTILITY (2) ------ Large Storage Unit Improved Targeting Computer > --- WEAPON (2) ------- Riot Gun > --- INVENTORY (15) --- Medium Storage Unit Humpback Improved Targeting Computer Makeshift Thermal Plating Medium Laser Medium Laser Battle Cannon Mining Laser Multitool Peak State ------------ > --- POWER ------------ Ion Engine > --- PROPULSION ------- Light Treads Light Treads Light Treads > --- UTILITY ---------- Large Storage Unit Improved Targeting Computer > --- WEAPON ----------- Improved EM Shotgun Improved EM Shotgun > --- INVENTORY -------- Medium Storage Unit Humpback Improved Targeting Computer Improved EM Shotgun Improved EM Shotgun Riot Gun Medium Laser Medium Laser Battle Cannon Mining Laser Multitool [Rating: 15] Favorites ----------- Power Ion Engine Engine Ion Engine Propulsion Light Treads Treads Light Treads Utility Large Storage Unit Storage Large Storage Unit Processor Improved Targeting Computer Weapon Improved EM Shotgun Energy Gun Improved EM Shotgun Special Weapon Mining Laser Build | -11 -10 -10 ------- Run | Yrd Mat Sub Slots Evolved 1 | . 1 . Power . | . . . Propulsion 1 | . 1 . Utility . | . . . Weapon . | . . . Parts Attached 15 | 5 4 6 Power 1 | 1 . . Engine 1 | 1 . . Core . | . . . Reactor . | . . . Propulsion 3 | 2 1 . Treads 3 | 2 1 . Leg . | . . . Wheel . | . . . Hover . | . . . Flight . | . . . Utility 3 | 1 1 1 Device . | . . . Storage 2 | 1 1 . Processor 1 | . . 1 Hackware . | . . . Protection . | . . . Artifact . | . . . Weapon 8 | 1 2 5 Energy Gun 7 | 1 2 4 Energy Cannon . | . . . Ballistic Gun . | . . . Ballistic Cannon . | . . . Launcher . | . . . Special Weapon 1 | . . 1 Impact Weapon . | . . . Slashing Weapon . | . . . Piercing Weapon . | . . . Special Melee Weapon . | . . . Unidentified Prototypes 1 | . 1 . Parts Lost 8 | . . 8 Power 1 | . . 1 Propulsion 3 | . . 3 Utility . | . . . Weapon 4 | . . 4 Highest Loss Streak 8 | . . 8 To Critical Strikes . | . . . Average Backups 7 | . 6 7 Power . | . . . Propulsion . | . . . Utility 2 | . 2 2 Weapon 4 | . 4 5 Tool/Special . | . . . Unused Backups 5 | . . 5 Power . | . . . Propulsion . | . . . Utility 3 | . . 3 Weapon 1 | . . 1 Tool/Special 1 | . . 1 Average Slot Usage (%) 88 | . 83 92 Engine 11 | . 12 11 Treads 35 | . 34 36 Storage 12 | . 12 12 Processor 3 | . . 6 Energy Gun 20 | . 24 17 Special Weapon 3 | . . 6 Peak Build Rating 15 | 5 10 15 Average Rating 10 | 3 8 11 On Entrance 4 | . 5 8 Avg Prop Armor Cover (%) . | . . . Naked Turns . | . . . Heaviest Build 39 | 17 39 31 Greatest Support 60 | 40 60 60 Greatest Overweight (x) 1 | . . 1 Average Overweight (x) . | . . . Largest Inventory Capacity 15 | 10 15 15 Average Capacity 14 | 8 13 15 Most Carried 13 | 5 8 13 Average Carried 7 | . 6 8 Final Capacity 15 | 10 15 15 Final Carried 10 | . 8 10 Class Distribution -------------------- 100% | Hacker-Mutant Dominant Class ---------------- Hacker-Mutant | -10/Materials Hacker-Mutant | -10/Subcaves Resources | -11 -10 -10 ----------- Run | Yrd Mat Sub Matter Collected 376 | 197 88 91 Remotely . | . . . Salvage Created 792 | . 296 496 Parts 40 | . 17 23 Haulers Intercepted 2 | . 2 . Recyclers Shooed . | . . . Parts Field Recycled . | . . . Retrieved Matter . | . . . Parts Self-Destructed . | . . . Prevented . | . . . Parts Restored . | . . . Kills | -11 -10 -10 ------- Run | Yrd Mat Sub Combat Hostiles Destroyed 15 | . 6 9 Guns 13 | . 5 8 Classes Destroyed 8 | . 5 3 Worker 1 | . 1 . Hauler 2 | . 2 . Turret 2 | . . 2 Watcher 2 | . 2 . Swarmer 6 | . 4 2 Grunt 2 | . 2 . Artisan 1 | . . 1 Subdweller 7 | . . 7 Best Kill Streak 4 | . 3 4 Combat Bots Only 2 | . 2 2 Max Kills in Single Turn 2 | . 2 1 Gunslinging 1 | . 1 . Exploded . | . . . Melee . | . . . Uniques/NPCs Destroyed . | . . . Combat | -11 -10 -10 -------- Run | Yrd Mat Sub Hostile Shots Fired 165 | . 18 147 Missed 57 | . 10 47 Hits 108 | . 8 100 Projectile 108 | . 8 100 Critical Strikes 3 | . . 3 Damage Taken 1147 | . 43 1104 Core 263 | . 14 249 Absorbed by Shields . | . . . Ignored by Resistances 703 | . 31 672 Core Remaining (%) 100 | 100 . . Volleys Fired 126 | . 24 102 Largest 2 | . 2 2 Hottest 100 | . 100 100 Shots Fired 173 | . 47 126 Gun 128 | . 47 81 Cannon . | . . . Launcher . | . . . Special 45 | . . 45 Kinetic . | . . . Thermal 116 | . 47 69 Explosive . | . . . Electromagnetic 57 | . . 57 Robot Hit Streak 38 | . 11 38 Robot Miss Streak 5 | . 2 5 Penetration Max . | . . . Secondary Targets 3 | . 3 . Max Gunslinging Chain 1 | . 1 . Shots Hit Robots 104 | . 35 69 Core Hits 46 | . 17 29 Critical Kills . | . . . Critical Parts Destroyed . | . . . Critical Strikes 8 | . 6 2 Burn 8 | . 6 2 Melee Attacks . | . . . Impact . | . . . Slashing . | . . . Piercing . | . . . Sneak Attacks . | . . . Combat Hostiles . | . . . Follow-up Attacks . | . . . Damage Inflicted 1340 | . 469 871 Guns 1311 | . 464 847 Cannons . | . . . Explosions . | . . . Melee . | . . . Ramming 5 | . 5 . Kinetic . | . . . Thermal 723 | . 464 259 Explosive . | . . . Electromagnetic 612 | . . 612 Impact . | . . . Slashing . | . . . Piercing . | . . . Highest Corruption 1 | . 1 1 Average Corruption 1 | . 1 1 Corruption Purged . | . . . Corruption Blocked . | . . . Effects 16 | . 3 13 Message Errors 6 | . 1 5 Matter Fused 3 | . 1 2 Heat Flow Errors 1 | . . 1 Energy Discharges 1 | . 1 . Data Loss (minor) 3 | . . 3 Misfires 2 | . . 2 Overload Shots . | . . . Overflow Damage . | . . . Projectiles . | . . . Explosions . | . . . Melee . | . . . Knockbacks . | . . . Impact . | . . . Kinetic . | . . . Secondary . | . . . Self-Inflicted Damage . | . . . Shots . | . . . Rammed 2 | . 2 . Targets Rammed 2 | . 2 . Kicked . | . . . Crushed . | . . . Highest Temperature 258 | . 258 176 Average Temperature 77 | . 77 79 Received Heat Transfer 736 | . 24 712 Effects 1 | . 1 . Energy Bleed 1 | . 1 . Siege Activations . | . . . Martial Activations . | . . . Shielding Activations . | . . . Robots Disrupted 1 | . . 1 Combat Hostiles 1 | . . 1 Robots Corrupted 1 | . . 1 Combat Hostiles 1 | . . 1 Parts Fried 5 | . . 5 Impact Corruptions . | . . . Robots Melted 1 | . 1 . Combat Hostiles 1 | . 1 . Parts Melted 9 | . 4 5 Heat Transferred 2714 | . 1813 901 Parts Sabotaged . | . . . Parts Stolen . | . . . Parts Stripped . | . . . Power Chain Reactions . | . . . Alert | -11 -10 -10 ------- Run | Yrd Mat Sub Maximum Alert Level . | . . . Low Security (%) 100 | 100 100 . Level 1 . | . . . Level 2 . | . . . Level 3 . | . . . Level 4 . | . . . Level 5 . | . . . High Security . | . . . Max Security . | . . . Peak Influence 57 | . 57 . Initial . | . . . Average 5 | . 6 . Influence Increases 533 | . 183 350 Destroy 0b10 Robot/C 200 | . 120 80 Destroy 0b10 Robot/NC 25 | . 25 . Destroy Leader 38 | . 38 . Lose Combat Pursuer 270 | . . 270 Influence Decreases 533 | . 183 350 Time Decay 498 | . 183 315 Lost Part 15 | . . 15 Lost Ally 20 | . . 20 Squads Dispatched . | . . . Investigation . | . . . Extermination . | . . . Reinforcement . | . . . Assault . | . . . Garrison . | . . . Intercept . | . . . Searches Triggered . | . . . Construction Impeded . | . . . Haulers Reinforced . | . . . Active Scanning Responses . | . . . Cargo Convoy Interrupts . | . . . Stealth | -11 -10 -10 --------- Run | Yrd Mat Sub Distress Signals 1 | . 1 . Communications Jammed . | . . . Distress Signals . | . . . Times Spotted 42 | . 11 31 Peak Tracking Total 4 | . 4 3 Tactical Retreats 3 | . . 3 Traps | -11 -10 -10 ------- Run | Yrd Mat Sub Traps Triggered 1 | . 1 . Indirectly . | . . . Trap Hack Attempts . | . . . Triggered . | . . . Disarmed . | . . . Reprogrammed . | . . . Reused . | . . . Traps Extracted . | . . . Installed . | . . . Triggered . | . . . Machines | -11 -10 -10 ---------- Run | Yrd Mat Sub Machines Disabled . | . . . Max in Single Turn . | . . . Machines Repaired . | . . . Machines Dismantled . | . . . Machines Sabotaged . | . . . Overloaded Fab Kills . | . . . Hacking | -11 -10 -10 --------- Run | Yrd Mat Sub Machines Accessed . | . . . Terminals . | . . . Fabricators . | . . . Repair Stations . | . . . Recycling Units . | . . . Scanalyzers . | . . . Garrison Access . | . . . Total Hacks . | . . . Successful . | . . . Failed . | . . . Catastrophic . | . . . Database Lockouts . | . . . Manual . | . . . Terminals . | . . . Fabricators . | . . . Repair Stations . | . . . Recycling Units . | . . . Scanalyzers . | . . . Garrison Access . | . . . Terminal Hacks . | . . . Fabricator Hacks . | . . . Repair Station Hacks . | . . . Recycling Unit Hacks . | . . . Scanalyzer . | . . . Garrison Access Hacks . | . . . Unauthorized Hacks . | . . . Terminals . | . . . Fabricators . | . . . Repair Stations . | . . . Recycling Units . | . . . Scanalyzers . | . . . Garrison Access . | . . . Data Cores Recovered . | . . . Used . | . . . Hacking Detections . | . . . Full Trace Events . | . . . Feedback Events . | . . . Feedback Blocked . | . . . Robot Schematics Acquired . | . . . Robots Built . | . . . Authchips . | . . . Time . | . . . Total Robot Build Rating . | . . . Part Schematics Acquired . | . . . Parts Built . | . . . Authchips . | . . . Time . | . . . Total Part Build Rating . | . . . Part Studies Acquired . | . . . Parts Repaired . | . . . Time . | . . . Parts Recycled . | . . . Recycled Matter . | . . . Retrieved Matter . | . . . Retrieved Components . | . . . Parts Scanalyzed . | . . . Part Schematics Acquired . | . . . Parts Damaged . | . . . Bothacking | -11 -10 -10 ------------ Run | Yrd Mat Sub Used RIF Installer . | . . . Robots Hacked . | . . . Non-combat . | . . . Combat . | . . . Robot Hacks Applied . | . . . Relay Couplers Released . | . . . Fabnet Peak Effective % . | . . . Robots Rewired 1 | . . 1 Allies Hacked . | . . . Hacks Repelled . | . . . Allies | -11 -10 -10 -------- Run | Yrd Mat Sub Total Allies 1 | . . 1 Largest Group 1 | . . 1 Highest-Rated Group 19 | . . 19 Highest-Rated Ally 19 | . . 19 Total Orders . | . . . Ally Attacks 13 | . . 13 Total Damage 228 | . . 228 Kills 1 | . . 1 Allies Corrupted . | . . . Allies Melted . | . . . Intel | -11 -10 -10 ------- Run | Yrd Mat Sub Active Infowar (turns) . | . . . Robot Analysis Total . | . . . Derelict Logs Recovered 1 | . . 1 Drone Launches . | . . . Drone Recoveries . | . . . Exploration | -11 -10 -10 ------------- Run | Yrd Mat Sub Turns Passed 2368 | 46 918 1404 Spaces Moved 1181 | 35 514 632 Core 17 | 17 . . Treads 1164 | 18 514 632 Legs . | . . . Wheels . | . . . Hover . | . . . Flight . | . . . Fastest Speed 50 | 50 160 160 Average Speed 158 | 106 160 160 Slowest Speed 240 | 160 160 240 Overloaded Moves . | . . . Propulsion Burnouts . | . . . Robots Hopped . | . . . Potential Cave-ins . | . . . Cave-ins Triggered . | . . . Exploration Rate (%) 43 | 4 82 45 Regions Visited 2 Branch Regions 1 Pre-discovered Areas . | . . . Known Exits Taken 2 | 1 1 . Unknown Exits Taken . | . . . Scrap Searched . | . . . Spaces Dug . | . . . Terrain Destroyed . | . . . Melee . | . . . Projectile . | . . . AOE . | . . . Terrain Rammed . | . . . Walls Destroyed . | . . . Machines Disabled . | . . . Actions | -11 -10 -10 --------- Run | Yrd Mat Sub Total 1418 | 44 563 811 Wait 60 | . 8 52 Move 1179 | 34 513 632 Hop . | . . . Pick Up 20 | 5 10 5 Fast Attach . | . . . Attach 17 | 5 4 8 Detach 6 | . 2 4 Swap 2 | . . 2 Drop . | . . . Fire 126 | . 24 102 Melee . | . . . Ram . | . . . Kick . | . . . Crush 2 | . 2 . Escape Stasis . | . . . Rewire 6 | . . 6 Trap . | . . . Miscellaneous . | . . . Route ------- -11/Scrapyard -10/Materials (discovered 5 exits: *Mat x2 / *Min x2 / *Sub) -10/Subcaves (discovered 2 exits: *Mat / *Rec) History --------- Turn | Location | Event 5 | -11/Scrapyard | Identified exit to Materials 5 | -11/Scrapyard | Discovered exit to Materials (range 15) 47 | -11/Scrapyard | Entered Materials 47 | -10/Materials | Evolved 1 slot: Propulsion x1 318 | -10/Materials | Build established: Hacker-Mutant 401 | -10/Materials | Identified exit to Mines 401 | -10/Materials | Discovered exit to Mines (range 13) 494 | -10/Materials | Discovered exit to Mines (range 10) 586 | -10/Materials | Identified exit to Materials 586 | -10/Materials | Discovered exit to Materials (range 6) 817 | -10/Materials | Discovered exit to Materials (range 12) 957 | -10/Materials | Identified exit to Subcaves 957 | -10/Materials | Discovered exit to Subcaves (range 5) 965 | -10/Materials | Entered Subcaves 966 | -10/Subcaves | Approached by a straggling Scientist 975 | -10/Subcaves | Ambushed by Subdwellers from Twisted Machinery 1014 | -10/Subcaves | A swath of the cavern ceiling suddenly collapsed 1087 | -10/Subcaves | Shifting Twisted Machinery released Sub. Monowheel 1620 | -10/Subcaves | Ambushed by Subdwellers from Twisted Machinery 1714 | -10/Subcaves | Identified exit to Materials 1714 | -10/Subcaves | Discovered exit to Materials (range 15) 1921 | -10/Subcaves | Identified exit to Recycling 1921 | -10/Subcaves | Discovered exit to Recycling (range 8) 2148 | -10/Subcaves | Learned 4 Materials zone layouts 2225 | -10/Subcaves | Shifting Twisted Machinery released Shrapnel Trap 2226 | -10/Subcaves | Shifting Twisted Machinery released Sub. Monowheel 2336 | -10/Subcaves | Core integrity fell below 50% 2353 | -10/Subcaves | Core integrity fell below 20% 2369 | -10/Subcaves | Destroyed by 8B-CN3(R) with Subdweller Beam Cannon Last Messages --------------- Machinery. Sub. Monowheel falls loose from the Twisted Machinery. 02251_ Acquired Riot Gun. 02266_ 5N-J1I(R) destroyed. 02267_ System corrupted: Component data lost. 02274_ Sub. Monowheel fried. 02274_ Sub. Optics fried. 02274_ TA-DMZ(R) destroyed. 02285_ Acquired Humpback. 02302_ Acquired Mak. Thermal Plating. 02318_ 8B-CN3(R): "PAIN_QUERY?" 02319_ Imp. EM Shotgun destroyed. 02319_ Ion Engine destroyed. 02321_ System corrupted: Component data lost. 02329_ Lgt. Treads destroyed. 02339_ Imp. EM Shotgun destroyed. 02345_ Critical hit (Meltdown: +190). 02353_ Lgt. Treads destroyed. 02356_ Imp. EM Shotgun destroyed. Map ----- +----------------------------------------------------+ | | | | | | | | | | | | | | | | | | | ?????????????????????????????????????????????????? | | ?????????????????????????????????????????????????? | | ?????????????????????????????????????????????????? | | ?????????????????????????????????????????????????? | | ?????????????????????????????????????????????????? | | ?????????????????????????????????????????????????? | | ?????????????????????????????????????????????????? | | ?????????????????????????????????????????????????? | | ?????????????????????????????????????????????????? | | ?????????????????????????????????????????????????? | | ?????????????????????????????????????????????????? | | ?????????????????????######??????????????????????? | | ?????????????????????# #??????????????????????? | | ?????????????????????## ???????????????????????? | | ?????????????????????#< ##??????????????????????? | | ?????? ????????????###< RR###?####???????????????? | | ?????? ??###??#### < @ ### ####????????????? | | ?????? # ### ## ## #????? | | ????????# ?? | | ?????????# &! ## # ?? | | ??????????# # *%[ [%| ##??###????? ?? | | ??????????????### # ##### #??????????????? | | ????????????????# ## ##???## #??????????????? | | ???????????????## ####?????# ;#??????????????? | | ???????????????# = ###?????? ## ?????????????? | | ??????????????#; ##????# ###?? ????????????? | | ??????????????### ##???##?????? ????????????? | | ????????????????## =""##???????????????????????? | | ?????????????????## "&##??????????????????????? | | ??????????????????### ##?????????????????????? | | ????????????????????#### ##????????????????????? | | ???????????????????????## ##???????????????????? | | ????????????????????????# ##??????????????????? | | ????????????????????????## ##?????????????????? | | ?????????????????????????## #?????????????????? | | ??????????????????????????## ##?????????????????? | | ??????????????????????????## ##?????????????????? | | ??????????????????????????# #?????????????????? | | ??????????????????????????##[ ##?????????????????? | | ??????????????????????????# ##?????????????????? | | ?????????????????????????## #?????????????????? | +----------------------------------------------------+ Best States ------------- Heat Dissipation 25 Energy Generation 10 Energy Capacity 250 Matter Stores 300 Matter Capacity 300 Sight Range 16 Terrain Scan Density 10 Resistance: KI 35 Resistance: TH 35 Resistance: EX 35 Resistance: EM 35 Resistance: I 35 Resistance: S 35 Resistance: P 35 Evasion (%) 50 Targeting Accuracy 6 Recoil Reduction 3 Offensive Hacking 20 Item Schematics ----------------- None Robot Schematics ------------------ None Fabricated ------------ Nothing Repaired ---------- Nothing Studied --------- None Alien Tech Used ----------------- None Achievements -------------- None Challenges ------------ None Game ------ Seed PhysicsExpertProcessor Manual? 0 Play Time 00:11:32 Cumulative 92.0 hours Start 2025.11.14 @ 12:24:35 End 2025.11.14 @ 12:34:34 Sessions 1 Manual Loads 0 Difficulty Explorer Special Mode None Game No. 103 Rogue 0 Adventurer 0 Explorer 103 Win Type - Total 0 Types 0/0/0/0/0/0/0/0/0/0 Lore% 58 Gallery% 56 Achievement% 44 Wizard Run 0 Options --------- Layout 1 ASCII 0 Keyboard 0 Movement Mouse Keybinds 0 Fullscreen 1 Font 24/Smallcaps Map View 50x35 Zoom Use 0% Tactical HUD 1 Map Filters NONE Filters NONE Steam 1 RUN: 95027eb6-a8f5-4e46-89ed-1ca689fe8711